[Event "10th Cherry Blossom Classic 2023"]
[Site "Dulles"]
[Date "2023.05.27"]
[Round "4.7"]
[White "Matviishen, Viktor"]
[Black "Sinha, Sahil"]
[Result "1-0"]
[ECO "D30"]
[WhiteElo "2538"]
[BlackElo "2317"]
[Annotator "TA"]
[PlyCount "87"]
[EventDate "2023.05.24"]
[EventType "swiss"]
[EventCountry "USA"]
[SourceTitle "playchess.com"]
[Source "ChessBase"]
[SourceQuality "1"]
[TimeControl "5400+30"]

{[%evp 9,87,9,15,8,10,1,10,8,7,27,10,4,0,4,19,0,31,24,57,13,33,21,30,35,24,15,15,19,31,26,32,0,0,0,0,-8,68,67,125,44,30,58,439,12,0,0,158,50,42,59,277,274,1318,1305,1179,747,745,735,800,806,839,838,822,820,828,804,897,893,907,895,879,874,911,920,924,791,2204,772,29986,29987]} 1. d4 {[%emt 0:00:56]} Nf6 {[%emt 0:00:19]} 2. c4 {[%emt 0:00:06]} e6 {[%emt 0:00:14]} 3. Nf3 {[%emt 0:00:07]} d5 {[%emt 0:00:23]} 4. e3 {[%emt 0:01:34]} Nbd7 {[%emt 0:05:44]} 5. b3 {[%emt 0:00:33]} Bb4+ {[%emt 0:01:27]} 6. Nbd2 {[%emt 0:00:16] D30: Queen's Gambit Declined: Systems without Nc3.} O-O {[%emt 0:01:19] [#]} 7. Bd3 $146 {[%emt 0:01:25]} ({Predecessor:} 7. Bb2 b6 8. Bd3 Bb7 9. O-O Re8 10. Qc2 Bd6 11. e4 dxe4 12. Nxe4 Bxe4 13. Bxe4 Nxe4 14. Qxe4 Nf6 15. Qc2 a5 16. Rad1 a4 17. Rfe1 axb3 18. axb3 {½-½ Gasanov,E (2481)-Dubov,D (2699) Titled Tuesday intern op 28th Apr blitz 2020 (6)}) 7... c5 {[%emt 0:04:58]} 8. O-O {[%emt 0:01:26] The position is equal.} b6 {[%emt 0:02:06]} 9. cxd5 {[%emt 0:06:57]} Nxd5 {[%emt 0:07:42]} 10. Bb2 {[%emt 0:14:37]} cxd4 {[%emt 0:02:57]} 11. Nxd4 {[%emt 0:00:33]} Bb7 {[%emt 0:00:30] Against Nc6} (11... Ne5 {feels hotter.} 12. Be4 Ba6 13. Qh5 Ng6) 12. Rc1 {[%emt 0:01:40]} (12. Qh5 N7f6 13. Qe2 Nc3 14. Bxc3 Bxc3 $17) 12... N7f6 {[%emt 0:08:40]} 13. Nc4 {[%emt 0:05:54]} Rc8 {[%emt 0:04:57]} 14. Qf3 {[%emt 0:01:02]} (14. a3 $5 {[%cal Ra3b4]} Bc5 15. Qf3 $14) 14... Bc5 {[%emt 0:07:09]} 15. Qg3 {[%emt 0:04:34]} Qe7 {[%emt 0:02:19]} 16. a3 {[%emt 0:10:24]} a5 {[%emt 0:03:12]} 17. Bb1 {[%emt 0:07:46]} Rfd8 {[%emt 0:03:19]} 18. Rfd1 {[%emt 0:00:01]} Nh5 {[%emt 0:05:24]} 19. Qe5 {[%emt 0:05:52]} Nhf6 {[%emt 0:02:32]} 20. Rc2 $40 {[%emt 0:11:30][%mdl 128] White has some attack.} Nd7 {[%emt 0:04:14]} 21. Qg3 {[%emt 0:00:29][%cal Od4f5] Strongly threatening Nf5!} N5f6 {[%emt 0:01:25]} 22. Rcd2 {[%emt 0:00:47]} Bd5 {[%emt 0:04:17]} (22... Ba6 $11) 23. Nf5 $1 $14 {[%emt 0:02:32][%csl Gf5][%cal Rg3g7][%mdl 64] Double Attack} Qf8 {[%emt 0:04:49] [#]} (23... exf5 $14 24. Rxd5 f4 25. exf4 (25. Qxf4 Nxd5 26. Rxd5 Nf6 $19) 25... Nf8) 24. Rxd5 {[%emt 0:07:57]} exd5 {[%emt 0:00:38]} 25. Rxd5 {[%emt 0:00:43][%cal Of5g7] Threatens to win with Nxg7!} b5 $2 {[%emt 0:07:53][%mdl 8192] [#]} (25... Nxd5 26. Bxg7 (26. Qxg7+ $2 Qxg7 27. Nxg7 b5 $19) (26. Qxg7+ $2 Qxg7 27. Nxg7 b5 $19)) (25... g6 $14 26. Rd1 Ne8) 26. Ncd6 $2 {[%emt 0:01:10]} ({White has to play} 26. Nxg7 $1 $18 {Intending Ne6+ and mate.} Qxg7 27. Rg5 (27. Nxa5 $2 Qxg3 28. hxg3 Nxd5 $19)) 26... Bxd6 $1 $11 {[%emt 0:00:52]} 27. Rxd6 {[%emt 0:00:01] Black must now prevent h3.} Nb6 $2 {[%emt 0:02:05]} 28. Kf1 {[%emt 0:06:38] Dancing on a razor blade. White has more active pieces.} (28. Bxf6 $2 Rc1+) (28. Bd3 $16 {[%cal Od6d8] And now Rxd8! would win.} Rxd6 29. Nxd6) 28... Rxd6 $14 {[%emt 0:02:16]} 29. Nxd6 {[%emt 0:00:01]} Rd8 {[%emt 0:00:09] White now steadily converts the win.} ({Black should play} 29... Qd8 $1 $14 30. Ke2 Rc6 31. Nxb5 Nbd7) 30. Bxf6 $18 {[%emt 0:00:38] Nf5 is the strong threat. A strong pair of Bishops.} (30. Nxb5 $2 {loses.} Rd1+ 31. Ke2 Rxb1 $17) (30. Be5 g6 31. Bxf6 Rxd6 $11) 30... Nc8 $2 {[%emt 0:08:29]} (30... Rxd6 31. Bxg7 {[%mdl 64] Deflection} Qxg7 32. Qxd6 Qc3 33. Qd8+ Kg7 34. Qg5+ Kf8 35. Qh6+ (35. Qxb5 Qc1+ 36. Ke2 Qxb1 $11) 35... Ke7 36. Qxb6 Qc1+ 37. Ke2 Qxb1 38. Qc5+ Kf6 39. Qxb5 Qb2+ 40. Kf3 Qxa3) 31. Nf5 {[%emt 0:03:18][%cal Rf6g7]} ({Inferior is} 31. Nxb5 Rd1+ 32. Ke2 Rxb1 $11) 31... g6 {[%emt 0:03:03]} 32. Bxd8 {[%emt 0:00:31]} Qxd8 {[%emt 0:00:04]} 33. Nd4 {[%emt 0:00:06]} Nd6 {[%emt 0:00:12]} 34. Qe5 {[%emt 0:00:27]} a4 {[%emt 0:00:19]} 35. bxa4 {[%emt 0:01:00]} bxa4 {[%emt 0:00:13]} 36. Bc2 {[%emt 0:00:12]} Qc7 {[%emt 0:00:10]} 37. Ke2 {[%emt 0:00:18]} Qb6 {[%emt 0:00:35]} 38. Qd5 {[%emt 0:00:24]} Qa6+ {[%emt 0:00:53]} 39. Bd3 {[%emt 0:00:05]} Qb6 {[%emt 0:00:08]} 40. Nb5 {[%emt 0:00:09]} Nb7 {[%emt 0:00:07]} 41. Bc4 {[%emt 0:00:11]} Nd8 {[%emt 0:00:08]} 42. Qd6 {[%emt 0:00:13]} Qa5 {[%emt 0:00:25]} 43. Qc7 {[%emt 0:00:02]} Qa8 {[%emt 0:00:11]} 44. Nd6 {[%emt 0:00:04] Magnificent play by Matviishen!   Weighted Error Value: White=0.40/Black=0.44} 1-0

[Event "10th Cherry Blossom Classic 2023"]
[Site "Dulles"]
[Date "2023.05.27"]
[Round "4.8"]
[White "Stearman, Josiah"]
[Black "Girsh, Daniel"]
[Result "1-0"]
[ECO "B90"]
[WhiteElo "2385"]
[BlackElo "2123"]
[Annotator "TA"]
[PlyCount "131"]
[EventDate "2023.05.24"]
[EventType "swiss"]
[EventCountry "USA"]
[SourceTitle "playchess.com"]
[Source "ChessBase"]
[SourceQuality "1"]
[TimeControl "5400+30"]

{[%evp 14,131,0,0,0,0,0,0,0,7,10,0,11,0,10,0,35,-14,-18,-39,0,-44,0,-11,-21,-23,0,-16,0,0,0,0,0,0,5,0,0,0,0,0,14,21,20,22,27,2,4,0,0,0,0,0,0,0,7,7,6,8,7,6,4,4,8,8,8,8,8,8,8,8,28,28,28,28,28,28,28,28,28,8,8,8,28,28,33,35,36,56,383,358,29975,29976,29974,29973,29995,29974,29972,29975,29975,29976,29976,29977,29978,29980,29980,29981,29974,29977,29975,29973,29974,29937,29981,29979,29978,29979,29989,29990,29997,584]} 1. e4 {[%emt 0:05:03]} c5 {[%emt 0:02:53]} 2. Nf3 {[%emt 0:00:10][%cal Bg1f3,Bf3d4,Bd4e2,Be2f4][%mdl 32]} d6 {[%emt 0:02:42]} 3. d4 {[%emt 0:00:03]} cxd4 {[%emt 0:00:06]} 4. Nxd4 {[%emt 0:00:03]} Nf6 {[%emt 0:00:07]} 5. Nc3 {[%emt 0:00:06]} a6 {[%emt 0:00:03]} 6. Bd3 {[%emt 0:00:04]} e5 {[%emt 0:00:42]} 7. Nde2 {[%emt 0:00:06]} Be7 {[%emt 0:00:05]} 8. O-O {[%emt 0:00:07]} Be6 {[%emt 0:00:24] B90: Sicilian Najdorf: Unusual White 6th moves, 6 Be3 Ng4 and 6 Be3 e5.} 9. f4 {[%emt 0:00:07] 9.f4 is better than 9.Ng3.} exf4 {[%emt 0:00:50]} 10. Nxf4 {[%emt 0:00:05]} Nc6 {[%emt 0:00:06] The position is equal.} 11. Be3 {[%emt 0:00:12]} Ne5 {[%emt 0:00:28]} 12. Bd4 {[%emt 0:02:28] [#]} O-O $146 {[%emt 0:01:07]} ({Predecessor:} 12... Rc8 13. Kh1 O-O 14. a4 Nfd7 15. Ncd5 Bg5 16. c3 Bxf4 17. Nxf4 Nc5 18. Nxe6 Nxe6 {½-½ Mannion,S (2271)-Hrabusa,M (2364) Prague op-A 20th 2022 (6)}) 13. Ncd5 {[%emt 0:04:24]} Rc8 {[%emt 0:13:56]} 14. Kh1 {[%emt 0:05:49]} (14. Bxe5 {simplifies} dxe5 15. Nxe6 fxe6 16. Nxf6+ Bxf6 17. Kh1) 14... Re8 {[%emt 0:08:35]} 15. a4 {[%emt 0:00:49]} (15. Nxe6 $14 fxe6 16. Bxe5 dxe5 17. Nxf6+ Bxf6 18. Qe2) 15... Nxd5 {[%emt 0:18:55]} 16. Nxd5 {[%emt 0:06:51]} Bg5 {[%emt 0:04:41]} 17. Ra3 {[%emt 0:02:07]} Nxd3 {[%emt 0:14:46]} 18. Rxd3 {[%emt 0:01:50]} Bxd5 {[%emt 0:00:42]} 19. exd5 {[%emt 0:00:20][%cal Oh2h4]} Qe7 {[%emt 0:00:06]} 20. Rg3 {[%emt 0:09:12][%cal Oh2h4]} g6 {[%emt 0:05:13]} 21. Bc3 {[%emt 0:02:18]} f6 {[%emt 0:09:14]} 22. Rgf3 {[%emt 0:05:52][%cal Rc3f6]} Qe2 {[%emt 0:01:01]} 23. Qd4 {[%emt 0:00:18]} Qc4 {[%emt 0:03:09]} (23... Qxc2 $2 24. Rxf6 Rxc3 25. Rf7 $18 (25. bxc3 Bxf6 26. Qxf6 Qe2 $14)) 24. Qb6 {[%emt 0:03:25]} (24. Qxc4 {simplifies} Rxc4 25. b3 Rc5 26. Bxf6 Bxf6 27. Rxf6 Rxd5 28. g3) 24... Qxd5 {[%emt 0:02:29]} 25. Rd3 {[%emt 0:00:07]} Qc6 {[%emt 0:01:18]} 26. Qb3+ {[%emt 0:00:05]} d5 {[%emt 0:00:45]} 27. Rxd5 {[%emt 0:01:43]} Qc4 {[%emt 0:00:11][%cal Rc4f1] [#] Prevents Rc5.} 28. Rd7 {[%emt 0:02:20]} b5 {[%emt 0:00:07]} 29. axb5 (29. Bxf6 $2 Bxf6 30. Qxc4+ bxc4 $19) 29... axb5 {[%emt 0:00:16]} 30. Qxc4+ {[%emt 0:11:30]} Rxc4 {[%emt 0:00:30]} 31. Rb7 {[%emt 0:01:04]} b4 {[%emt 0:02:08]} 32. Bxb4 {[%emt 0:01:30]} Rxc2 {[%emt 0:00:07]} 33. Bc3 {[%emt 0:00:49]} Ree2 {[%emt 0:01:49]} 34. Rd1 {[%emt 0:00:33] White wants to mate with Rd8+.} Rc1 {[%emt 0:00:22]} (34... Rxg2 $2 35. Rd8#) 35. Rxc1 {[%emt 0:00:29]} Bxc1 $11 {[%emt 0:00:06][%mdl 4096] Endgame KRB-KRB} 36. g3 {[%emt 0:00:32]} f5 {[%emt 0:00:05]} 37. b4 {[%emt 0:01:15]} f4 {[%emt 0:00:02]} 38. gxf4 {[%emt 0:00:36]} Bxf4 {[%emt 0:00:24]} 39. Rg7+ {[%emt 0:00:06]} Kf8 {[%emt 0:00:06]} 40. Rxh7 {[%emt 0:00:04]} Rc2 {[%emt 0:00:07]} 41. Bd4 {[%emt 0:00:56]} Rc1+ {[%emt 0:06:29]} 42. Kg2 {[%emt 0:00:05]} Rc2+ {[%emt 0:00:04]} 43. Kf3 {[%emt 0:00:07]} Rxh2 {[%emt 0:00:07]} 44. Bc5+ {[%emt 0:00:27]} Kg8 {[%emt 0:00:12]} 45. Rd7 {[%emt 0:00:28]} g5 {[%emt 0:00:27]} 46. b5 {[%emt 0:00:34] Strongly threatening b6.} Rc2 $1 {[%emt 0:00:18]} 47. Bd4 {[%emt 0:00:27] Threatens to win with b6.} Kf8 {[%emt 0:00:31]} (47... Rc7 $5 {[%cal Rc7d7]} 48. Rd5 Kf7 $14) 48. b6 {[%emt 0:00:33] aiming for b7.} Ke8 {[%emt 0:00:12]} 49. Rh7 {[%emt 0:00:07]} Rh2 {[%emt 0:00:55]} 50. Rg7 {[%emt 0:00:30]} Kd8 $2 {[%emt 0:01:18][%mdl 8192] Black cannot hold the game after this.} (50... Rd2 $14 51. Ke4 Re2+ 52. Kd5 Re7) 51. b7 $18 {[%emt 0:00:41] Intending Bf6+ and mate.} Rh3+ $2 {[%emt 0:00:08]} (51... Ke8 $18 52. Bf6 Bd6 53. Re7+ (53. Rxg5 Rh7 $14) (53. Bxg5 Rb2 $16) 53... Kd8) 52. Ke4 {[%emt 0:00:12] White mates.} Rb3 {[%emt 0:02:52]} 53. Kd5 {[%emt 0:00:22]} Rd3 {[%emt 0:00:17]} 54. Kc4 {[%emt 0:00:42]} Rd1 {[%emt 0:00:13]} 55. Bb6+ {[%emt 0:01:32]} Ke8 {[%emt 0:00:07]} 56. Bc7 {[%emt 0:00:18]} Rc1+ {[%emt 0:00:50]} 57. Kd5 {[%emt 0:00:16][%cal Rb7b8]} Bxc7 {[%emt 0:00:55] [#]} 58. Rxc7 $1 {[%emt 0:00:04][%mdl 576] Remove Defender, Promotion} Rxc7 {[%emt 0:00:06]} 59. b8=Q+ {[%emt 0:00:04] KQ-KR} (59. b8=B Re7 60. Kd4 Kf7 $19) 59... Kd7 {[%emt 0:00:09]} 60. Qb5+ {[%emt 0:00:37]} Ke7 {[%emt 0:00:06]} 61. Qb4+ {[%emt 0:00:06]} Ke8 {[%emt 0:00:17]} 62. Kd6 {[%emt 0:00:21]} Re7 {[%emt 0:01:13]} 63. Qg4 {[%emt 0:01:31]} Rg7 {[%emt 0:00:58]} 64. Qf5 {[%emt 0:00:36]} g4 {[%emt 0:00:22]} 65. Qf6 {[%emt 0:00:20]} Rf7 {[%emt 0:00:35]} 66. Qh8+ {[%emt 0:00:24] Weighted Error Value: White=0.06 (flawless) /Black=0.26 (precise)} (66. Qe5+ $142 Kd8 67. Qh8+ Rf8 68. Qxf8#) 1-0

[Event "10th Cherry Blossom Classic 2023"]
[Site "Dulles"]
[Date "2023.05.27"]
[Round "4.9"]
[White "Kiewra, Keaton"]
[Black "Ouellet, Maili-Jade"]
[Result "0-1"]
[ECO "B90"]
[WhiteElo "2352"]
[BlackElo "2246"]
[Annotator "TA"]
[PlyCount "134"]
[EventDate "2023.05.24"]
[EventType "swiss"]
[EventCountry "USA"]
[SourceTitle "playchess.com"]
[Source "ChessBase"]
[SourceQuality "1"]
[TimeControl "5400+30"]

{[%evp 12,134,43,9,3,-6,-5,-4,0,0,-8,0,0,-33,-16,-47,-47,-48,-47,-48,-41,-48,-48,-48,-47,-41,-43,-44,0,0,0,0,0,0,23,0,0,0,0,0,0,0,0,0,0,0,0,0,0,-79,-77,-87,-93,-135,-150,-460,-468,-473,-465,-466,-462,-449,-439,-421,-410,-442,-439,-472,-475,-579,-562,-645,-644,-660,-650,-608,-578,-579,-571,-587,-544,-926,-694,-867,-651,-634,-615,-623,-587,-517,-608,-589,-592,-545,0,-149,0,-508,0,-403,-362,-336,-375,-197,0,0,0,-242,-309,-1908,-1924,-1235,-2402,-2101,-2052,-12841,-12842,-29987,-29988,-29988,-29989,-29989,-29990,-29990,-29991]} 1. e4 {[%emt 0:07:09]} c5 {[%emt 0:00:04]} 2. Nf3 {[%emt 0:00:05]} d6 {[%emt 0:00:03]} 3. d4 {[%emt 0:00:31]} cxd4 {[%emt 0:00:04]} 4. Nxd4 {[%emt 0:00:04]} Nf6 {[%emt 0:00:05]} 5. Nc3 {[%emt 0:00:04]} a6 {[%emt 0:00:04]} 6. h3 {[%emt 0:00:59]} e5 {[%emt 0:00:07]} 7. Nb3 {[%emt 0:00:26]} Be7 $1 {[%emt 0:00:52][%mdl 4] now scores much better than the old 7...Be6. B90: Sicilian Najdorf: Unusual White 6th moves, 6 Be3 Ng4 and 6 Be3 e5.} 8. Bg5 {[%emt 0:00:46]} Be6 {[%emt 0:01:28]} 9. Bxf6 {[%emt 0:02:05]} Bxf6 {[%emt 0:00:10] The position is equal.} 10. Nd5 {[%emt 0:01:00] [#]} Nd7 $146 {[%emt 0:00:47]} ({Predecessor:} 10... Bg5 11. Bd3 Nc6 12. c4 Rc8 13. O-O O-O 14. f4 exf4 15. Nxf4 Bxf4 16. Rxf4 Qg5 {0-1 Koll,L (1620)-Traetmar,M (1888) GER Pfingstopen U25 blitz 2020 (9)}) 11. Bc4 {[%emt 0:03:51]} Rc8 {[%emt 0:04:09]} 12. Qd3 {[%emt 0:00:07]} O-O {[%emt 0:05:03]} (12... Bg5 $5 {[%cal Rb7b5]} 13. a4 Nb6 14. Nxb6 Qxb6 15. Bxe6 fxe6 $15) 13. Ne3 {[%emt 0:04:10]} Bg5 {[%emt 0:15:04] Threatens to win with ...Bxe3.} 14. Bxe6 $1 {[%emt 0:04:32]} fxe6 {[%emt 0:01:07]} 15. O-O {[%emt 0:01:53]} Bxe3 {[%emt 0:02:23]} 16. fxe3 {[%emt 0:00:15]} Nf6 {[%emt 0:01:27]} 17. c4 {[%emt 0:01:38]} b6 {[%emt 0:11:06]} 18. Rad1 {[%emt 0:04:52]} Rc6 {[%emt 0:01:10]} 19. Nd2 {[%emt 0:00:51][%cal Bb3d2,Bd2b1,Bb1c3][%mdl 32]} a5 {[%emt 0:03:24]} 20. Nb1 {[%emt 0:01:11]} Qe8 {[%emt 0:02:09]} 21. Nc3 {[%emt 0:01:41]} Qg6 {[%emt 0:05:54]} 22. Rf3 {[%emt 0:04:11]} Nd7 {[%emt 0:06:05]} 23. Qf1 {[%emt 0:05:46]} Rxf3 {[%emt 0:01:10]} 24. Qxf3 {[%emt 0:00:06]} Nf6 {[%emt 0:00:56]} 25. b3 {[%emt 0:02:40]} Kf7 {[%emt 0:01:19]} 26. Qe2 {[%emt 0:01:54]} Ke7 {[%emt 0:02:25]} 27. Qd3 {[%emt 0:00:11]} Nd7 {[%emt 0:01:10]} 28. a3 {[%emt 0:00:15]} Nc5 {[%emt 0:01:36][%csl LRb3,LRd3]} 29. Qc2 Qg3 {[%emt 0:01:20]} 30. b4 {[%emt 0:08:13]} (30. Qe2 $11 {remains equal.}) 30... Qxe3+ $17 {[%emt 0:00:24]} 31. Kh1 {[%emt 0:00:07]} Nd7 {[%emt 0:02:24][%cal Bc5d7,Bd7f8,Bf8g6][%mdl 32]} 32. c5 {[%emt 0:09:29]} axb4 {[%emt 0:03:40]} (32... bxc5 33. Qb3 Qf2 34. Qa4 $17) (32... dxc5 33. bxa5 bxa5 34. Qb3 $17) 33. cxd6+ $2 {[%emt 0:06:17]} (33. axb4 $17 {was the crucial defense.} bxc5 34. Qa4) 33... Ke8 $19 {[%emt 0:05:24]} (33... Rxd6 34. Rxd6 Kxd6 35. axb4 $17) 34. Qa2 {[%emt 0:06:11]} b3 {[%emt 0:05:49]} (34... bxc3 $2 35. Qxe6+ Kf8 36. Qxd7 $18) (34... Nf8 35. Nd5 b3 36. Qb2 $15 (36. Nxe3 $2 bxa2 37. Ra1 Rc3 $19)) 35. Qxb3 {[%emt 0:00:13]} Nf8 {[%emt 0:00:34]} 36. Rf1 {[%emt 0:09:33]} Qxc3 {[%emt 0:01:06]} (36... Rxc3 37. Qa4+ Nd7 38. Qa8+) 37. Qd1 {[%emt 0:00:06][%cal Of1f8]} Ng6 {[%emt 0:05:49]} (37... Qxa3 38. Rxf8+ Kxf8 39. d7 $17) 38. Qa4 {[%emt 0:03:22]} Qc4 {[%emt 0:02:52]} 39. d7+ {[%emt 0:02:46]} Kxd7 {[%emt 0:00:47]} 40. Rf7+ {[%emt 0:00:07]} Kd6 {[%emt 0:01:00]} 41. Qa7 {[%emt 0:02:10]} Qxe4 {[%emt 0:01:22]} 42. Qd7+ {[%emt 0:00:31]} Kc5 {[%emt 0:00:06] Hoping for ...Qd4.} 43. Rf1 {[%emt 0:00:21]} Qc2 {[%emt 0:01:44] Wards off Rc1} 44. Qxg7 {[%emt 0:01:12]} h5 {[%emt 0:02:23][%cal Bh7h5,Bh5h4][%mdl 32]} 45. Qf6 {[%emt 0:03:34]} Rd6 {[%emt 0:00:38] ...Rd1 would be deadly.} 46. Rf2 {[%emt 0:01:16]} Qb1+ {[%emt 0:00:55]} 47. Kh2 {[%emt 0:00:04]} h4 {[%emt 0:02:35] ( -> ...Rd1)} 48. Rf1 {[%emt 0:00:40]} Qc2 {[%emt 0:00:21] And now ...Rd2 would win.} 49. Rf2 {[%emt 0:00:22]} Qe4 {[%emt 0:00:26]} 50. Qf7 {[%emt 0:01:35]} Nf4 {[%emt 0:00:10]} 51. Qc7+ {[%emt 0:00:22]} Rc6 {[%emt 0:01:20]} 52. Qe7+ {[%emt 0:00:05]} Kd5 $2 {[%emt 0:00:38]} ({Black should play} 52... Kb5 $19 53. Rb2+ Ka6 54. Qxh4 Rc3) 53. Qd7+ {[%emt 0:00:39] [#]} (53. Rd2+ $11 Nd3 54. Qd7+ Kc4 55. Rxd3) 53... Kc5 $2 {[%emt 0:00:39][%mdl 8192]} (53... Kc4 $1 $17 {[%cal Rc4b5]} 54. Rb2 Qd5 55. Rc2+ Kd3 56. Qxc6 Ne2) 54. Qe7+ {[%emt 0:00:06]} Kd5 $2 {[%emt 0:00:51]} ({Better is} 54... Kb5 $19 55. Rb2+ Ka6) 55. Qd7+ $2 {[%emt 0:00:43][%mdl 8192] [#]} (55. Rd2+ $11 Nd3 56. Qd7+ Kc4 57. Rc2+ Kb3 58. Qxc6 (58. Rxc6 $2 {perishes.} Qf4+ 59. Kg1 Qf2+ 60. Kh2 Qg3+ 61. Kg1 Qe1+ 62. Kh2 Nf2 $19) 58... Qf4+ 59. Kh1 Qf1+ 60. Kh2 Qf4+ 61. Kh1 Qf1+ 62. Kh2 Qf4+) 55... Kc4 $1 {[%emt 0:00:04] aiming for ...Kb5.} 56. Rb2 {[%emt 0:00:44]} Kc5 {[%emt 0:00:42] White must now prevent ...Nd5.} 57. Qe7+ {[%emt 0:01:09]} Rd6 {[%emt 0:00:14]} ({Inferior is} 57... Kd5 58. Rd2+ Nd3 59. Qd7+ Kc4 60. Rxd3 $11) 58. Qc7+ {[%emt 0:00:37]} Rc6 {[%emt 0:00:20]} 59. Qe7+ {[%emt 0:00:19]} Kd4 {[%emt 0:00:36] Strongly threatening ...Nd3.} ({Not} 59... Kd5 60. Rd2+ Nd3 61. Qd7+ Kc4 62. Rxd3 $11) 60. Qxh4 $2 {[%emt 0:03:46]} (60. Qb4+ Kd5 61. Rd2+ Nd3 62. Qb5+ Kd4 63. Rxd3+ Qxd3 64. Qxc6) 60... Nd3 {[%emt 0:00:36][%csl LRb2,LRh4]} 61. Qd8+ {[%emt 0:00:16]} Kc3 {[%emt 0:00:23]} 62. Rb1 {[%emt 0:00:49]} Qf4+ {[%emt 0:00:42]} 63. Kh1 {[%emt 0:00:24]} Kc2 {[%emt 0:00:28]} 64. Ra1 {[%emt 0:00:33]} Kb2 {[%emt 0:00:45] Black mates.} 65. Qd7 {[%emt 0:00:34]} Rc5 {[%emt 0:00:28]} 66. Rb1+ {[%emt 0:00:31]} Kxb1 {[%emt 0:00:08][%cal Rc5c1]} 67. Qxd3+ {[%emt 0:00:03]} Ka1 {[%emt 0:00:11] Weighted Error Value: White=0.39/Black=0.05 (flawless)} 0-1

[Event "10th Cherry Blossom Classic 2023"]
[Site "Dulles"]
[Date "2023.05.27"]
[Round "4.10"]
[White "Roselli Mailhe, Bernardo"]
[Black "Morefield, Jason"]
[Result "0-1"]
[ECO "D45"]
[WhiteElo "2380"]
[BlackElo "2167"]
[Annotator "TA"]
[PlyCount "62"]
[EventDate "2023.05.24"]
[EventType "swiss"]
[EventCountry "USA"]
[SourceTitle "playchess.com"]
[Source "ChessBase"]
[SourceQuality "1"]
[TimeControl "5400+30"]

{[%evp 13,62,20,17,25,27,20,20,27,26,20,25,23,28,18,23,23,24,22,22,14,10,8,14,12,21,16,21,27,21,0,0,-14,-14,-11,-14,-13,12,0,0,-28,0,-104,-15,-465,-483,-468,-462,-755,-754,-746,-746]} 1. d4 {[%emt 0:00:23]} Nf6 {[%emt 0:00:12]} 2. c4 {[%emt 0:00:45]} e6 {[%emt 0:00:09]} 3. Nf3 {[%emt 0:00:03]} d5 {[%emt 0:00:09]} 4. Nc3 {[%emt 0:00:10]} c6 {[%emt 0:00:05]} 5. e3 {[%emt 0:00:04]} Nbd7 {[%emt 0:00:06]} 6. Qc2 {[%emt 0:00:05]} b6 {[%emt 0:00:07]} 7. cxd5 {[%emt 0:07:06]} cxd5 {[%emt 0:00:10]} 8. Nb5 {[%emt 0:03:49] D45: Semi-Slav: 5 e3.} Bb4+ {[%emt 0:00:10]} 9. Bd2 {[%emt 0:00:04]} Bxd2+ {[%emt 0:00:09]} 10. Nxd2 {[%emt 0:00:59] [#] Black must now prevent Nc7+. The position is equal.} O-O {[%emt 0:00:09]} 11. Be2 {[%emt 0:11:40]} Bb7 {[%emt 0:06:27]} 12. O-O {[%emt 0:01:36] [#]} Qb8 $146 {[%emt 0:07:03]} ({Predecessor:} 12... a6 13. Nc3 Qe7 14. f4 Rac8 15. Bd3 b5 16. a3 Nb6 17. Nb3 Na4 18. Qd2 Nxc3 19. bxc3 {½-½ Atakhan,A (2410)-Schekachikhin,M (2376) Ayvalik Akasya 2023 (7)}) 13. a4 {[%emt 0:07:32]} a6 {[%emt 0:01:45]} 14. Nc3 {[%emt 0:00:09]} Qd6 {[%emt 0:02:28]} 15. Qb3 {[%emt 0:01:01]} Rac8 {[%emt 0:03:55]} 16. Qa3 {[%emt 0:10:55]} Qxa3 {[%emt 0:00:41]} 17. Rxa3 {[%emt 0:00:05]} Rc7 {[%emt 0:00:32]} 18. Rd1 {[%emt 0:02:55]} Rfc8 {[%emt 0:00:30]} 19. f3 {[%emt 0:01:41]} Ne8 {[%emt 0:00:50][%cal Bf6e8,Be8d6,Bd6c4][%mdl 32]} 20. Kf2 {[%emt 0:05:28]} Nd6 {[%emt 0:00:11]} 21. e4 {[%emt 0:04:59]} dxe4 {[%emt 0:00:31]} 22. Ndxe4 {[%emt 0:01:04]} Bxe4 {[%emt 0:05:21]} 23. fxe4 {[%emt 0:05:16]} Nc4 {[%emt 0:04:40]} 24. Rb3 {[%emt 0:05:15]} Kf8 {[%emt 0:02:48]} (24... Nxb2 $5 25. Rxb2 Rxc3 $11) 25. Na2 {[%emt 0:06:24]} a5 {[%emt 0:08:30]} 26. Kf3 {[%emt 0:12:02]} Ke7 {[%emt 0:08:46]} (26... e5 $5) 27. Rc3 {[%emt 0:01:10]} (27. Kf2 $11) 27... e5 {[%emt 0:05:37] Black is more active.} (27... Nxb2 $17 28. Rdc1 Rxc3+ 29. Rxc3 Rxc3+ 30. Nxc3 e5) 28. Rdc1 {[%emt 0:08:31][%mdl 8192] White does not recover from this.} (28. Rb3 $11 {and White has nothing to worry.}) 28... exd4 $19 {[%emt 0:01:17] Black is clearly winning.} ({Worse is} 28... Nd2+ 29. Kg4 h5+ 30. Kh3 Rxc3+ 31. Nxc3 $17) 29. Rxc4 {[%emt 0:00:09]} Ne5+ {[%emt 0:00:23]} 30. Kf4 {[%emt 0:00:03]} (30. Kg3 $142 Nxc4 31. Bg4) 30... Nxc4 {[%emt 0:00:10]} 31. Bg4 {[%emt 0:00:04] [#]} Nxb2 $1 {[%emt 0:00:52][%mdl 64] Discovered Attack.   Weighted Error Value: White=0.57/Black=0.10 (very precise)} 0-1